bitfinex/quotes_BTCUSD_20240810
["timestamp","ask_amount","ask_price","bid_price","bid_amount"]
[1723323628028,0.03979943,61087.0,61086.0,0.2249662]
[1723323628224,0.03095236,61087.0,61086.0,0.2249662]
[1723323628426,0.04479943,61087.0,61086.0,0.2249662]
[1723323628567,0.04479943,61087.0,61086.0,0.3886692]
[1723323628771,0.02979943,61087.0,61086.0,0.87989012]
[1723323629051,0.02979943,61087.0,61086.0,1.01384865]
[1723323629052,0.016,61087.0,61086.0,1.01384865]
[1723323629205,0.021,61087.0,61086.0,1.01384865]
[1723323629575,0.01,61087.0,61086.0,1.01384865]
[1723323629975,0.017,61087.0,61086.0,1.01384865]
[1723323630214,0.022,61087.0,61086.0,1.01384865]
[1723323630414,0.015,61087.0,61086.0,1.01384865]
[1723323630758,0.015,61087.0,61086.0,0.87989012]
[1723323630890,0.015,61087.0,61086.0,1.01332616]
[1723323631232,0.015,61087.0,61086.0,1.02285399]
[1723323631541,0.01,61090.0,61089.0,0.409237]
[1723323631759,0.02495236,61090.0,61089.0,0.85028795]
[1723323631922,0.02495236,61090.0,61089.0,1.01398295]
[1723323632285,0.01495236,61090.0,61089.0,1.01398295]
[1723323632503,0.02495236,61090.0,61089.0,1.01398295]
[1723323632703,0.011,61090.0,61089.0,1.01798295]
[1723323632999,0.002,61090.0,61089.0,1.02098295]
[1723323634273,0.01695236,61090.0,61089.0,1.02098295]
[1723323634622,0.01595236,61090.0,61089.0,1.01698295]
[1723323635027,0.01695236,61090.0,61089.0,1.01998295]
[1723323635258,0.01595236,61090.0,61089.0,1.01698295]
[1723323635944,0.02495236,61090.0,61089.0,1.01398295]
[1723323636156,0.02595236,61090.0,61089.0,1.01598295]
[1723323636314,0.02695236,61090.0,61089.0,1.01898295]
[1723323636950,0.01695236,61090.0,61089.0,1.01898295]
[1723323637154,0.01695236,61090.0,61089.0,1.09958295]
[1723323637513,0.02695236,61090.0,61089.0,0.96614692]
[1723323637713,0.02595236,61090.0,61089.0,0.96314692]
[1723323637955,0.02595236,61090.0,61089.0,1.09632286]
[1723323638270,0.01695236,61090.0,61089.0,0.96614692]
[1723323638471,0.01595236,61090.0,61089.0,0.96414692]
[1723323638655,0.01595236,61090.0,61089.0,0.96314692]
[1723323638968,0.01595236,61090.0,61089.0,0.96414692]
[1723323639131,0.02595236,61090.0,61089.0,0.96414692]
[1723323639331,0.02695236,61090.0,61089.0,0.96614692]
[1723323641802,0.01695236,61090.0,61089.0,0.96614692]
[1723323642133,0.02695236,61090.0,61089.0,0.96614692]
[1723323644110,0.02695236,61090.0,61089.0,0.96706212]
[1723323645886,0.01695236,61090.0,61089.0,0.96706212]
[1723323647096,0.01595236,61090.0,61089.0,0.96406212]
[1723323647500,0.01595236,61090.0,61089.0,0.96706212]
[1723323647921,0.02595236,61090.0,61089.0,0.96706212]
[1723323648121,0.01595236,61090.0,61089.0,0.96706212]
[1723323648328,0.01495236,61090.0,61089.0,0.96506212]
[1723323648563,0.01495236,61090.0,61089.0,0.96706212]
[1723323649428,0.02495236,61090.0,61089.0,0.96706212]
[1723323650249,0.02495236,61090.0,61089.0,1.10047751]
[1723323651293,0.02495236,61090.0,61089.0,1.10046209]
[1723323651498,0.01495236,61090.0,61089.0,1.10046209]
[1723323651634,0.01495236,61090.0,61089.0,1.09746209]
[1723323651834,0.01495236,61090.0,61089.0,1.09546209]
[1723323652372,0.01495236,61090.0,61089.0,1.09746209]
[1723323652612,0.01495236,61090.0,61089.0,1.09546209]
[1723323652778,0.01495236,61090.0,61089.0,1.09746209]
[1723323653024,0.02495236,61096.0,61095.0,0.245518]
[1723323653223,0.02495236,61096.0,61095.0,0.95589092]
[1723323653377,0.02495236,61096.0,61095.0,1.08934338]
[1723323654945,0.02795236,61096.0,61095.0,1.08934338]
[1723323655271,0.01795236,61096.0,61095.0,1.08934338]
[1723323655509,0.01795236,61096.0,61095.0,0.92566438]
[1723323655715,0.02195236,61096.0,61095.0,0.78706438]
[1723323655921,0.03195236,61096.0,61095.0,0.65361192]
[1723323656173,0.02795236,61096.0,61095.0,0.78681899]
[1723323656379,0.01895236,61096.0,61095.0,0.78681899]
[1723323656516,0.02195236,61096.0,61095.0,0.54240407]
[1723323656890,0.03195236,61096.0,61095.0,0.54240407]
[1723323657097,0.01495236,61096.0,61095.0,0.54240407]
[1723323657461,0.01595236,61096.0,61095.0,0.54240407]
[1723323657679,0.02595236,61096.0,61095.0,0.54240407]
[1723323657929,0.02495236,61096.0,61095.0,0.54240407]
[1723323658102,0.01,61096.0,61095.0,1.08909799]
[1723323658478,0.012,61096.0,61095.0,1.08909799]
[1723323658687,0.01,61096.0,61095.0,1.08909799]
[1723323659055,0.01,61096.0,61095.0,0.69046765]
[1723323659267,0.000832,61108.0,61096.0,0.245514]
[1723323659268,0.01,61097.0,61096.0,0.245514]
[1723323659473,0.01,61097.0,61096.0,1.19278347]
[1723323659683,0.01,61097.0,61096.0,1.64313547]
[1723323659881,0.01,61100.0,61099.0,0.081834]
[1723323660087,0.01,61100.0,61099.0,1.02375483]
[1723323660337,0.01,61100.0,61099.0,1.67842683]
[1723323660991,0.01,61100.0,61099.0,1.77842683]
[1723323661598,0.011,61100.0,61099.0,1.61657371]
[1723323661998,0.01,61100.0,61099.0,1.53297371]
[1723323662196,0.011,61100.0,61099.0,1.44603845]
[1723323662412,0.011,61100.0,61099.0,1.61891395]
[1723323662413,0.012,61100.0,61099.0,1.61891395]
[1723323662829,0.012,61100.0,61099.0,1.44889176]
[1723323663021,0.011,61100.0,61099.0,1.44589176]
[1723323663222,0.011,61100.0,61099.0,1.44589468]
[1723323663424,0.012,61100.0,61099.0,1.44989468]
[1723323663860,0.011,61100.0,61099.0,1.44689468]
[1723323664017,0.012,61100.0,61099.0,1.44989468]
[1723323664605,0.011,61100.0,61099.0,1.44689468]
[1723323664864,0.01,61100.0,61099.0,1.44589468]
[1723323665084,0.012,61100.0,61099.0,1.44890357]
[1723323665509,0.011,61100.0,61099.0,1.37795308]
[1723323665736,0.012,61100.0,61099.0,1.44890358]
[1723323665939,0.012,61100.0,61099.0,1.38095308]
[1723323666256,0.012,61100.0,61099.0,1.44890193]
[1723323666461,0.012,61100.0,61099.0,1.38095308]
[1723323667600,0.011,61100.0,61099.0,1.37795308]
[1723323667804,0.01,61100.0,61099.0,1.37495308]
[1723323668101,0.011,61100.0,61099.0,1.37795308]
[1723323668303,0.012,61100.0,61099.0,1.38186828]
[1723323669498,0.012,61100.0,61099.0,1.38204448]
[1723323676525,0.01,61100.0,61099.0,1.37703951]
[1723323676751,0.011,61100.0,61099.0,1.38003951]
[1723323677707,0.001,61100.0,61099.0,1.61365654]
[1723323677908,0.002,61100.0,61099.0,1.78652196]
[1723323678727,0.00997696,61110.0,61109.0,0.714247]
[1723323678909,0.00997696,61110.0,61109.0,1.09226531]
[1723323679828,0.01097696,61110.0,61109.0,1.09226531]
[1723323680243,0.01097696,61110.0,61109.0,1.11526531]
[1723323681028,0.01297696,61110.0,61109.0,1.11526531]
[1723323682334,0.01097696,61110.0,61109.0,1.11526531]
[1723323682532,0.01097696,61110.0,61109.0,1.11726531]
[1723323682903,0.00997696,61110.0,61109.0,1.11726531]
[1723323683103,0.02492932,61114.0,61113.0,0.572708]
[1723323683305,0.02492932,61114.0,61113.0,0.95072631]
[1723323683520,0.01495236,61114.0,61113.0,0.95083313]
[1723323683719,0.02492932,61114.0,61113.0,0.95083313]
[1723323684727,0.00997696,61114.0,61113.0,0.95083313]
[1723323684867,0.02576132,61117.0,61116.0,0.57268]
[1723323685076,0.02576132,61117.0,61116.0,0.95080513]
[1723323685815,0.01080896,61117.0,61116.0,0.95080513]
[1723323686399,0.01580896,61117.0,61116.0,0.95080513]
[1723323686779,0.01080896,61117.0,61116.0,0.95080513]
[1723323687102,0.01080896,61117.0,61116.0,0.81709492]
[1723323687302,0.01880896,61117.0,61116.0,0.95087908]
[1723323687705,0.01080896,61117.0,61116.0,0.95087908]
[1723323687904,0.000832,61117.0,61116.0,0.87027908]
[1723323688160,0.077432,61117.0,61116.0,0.95087908]
[1723323688344,0.079432,61117.0,61116.0,0.95087908]
[1723323689619,0.078432,61117.0,61116.0,0.95087908]
[1723323689818,0.076432,61117.0,61116.0,0.95087908]
[1723323690016,0.076432,61117.0,61116.0,0.95187908]
[1723323690850,0.076432,61117.0,61116.0,0.81809492]
[1723323691039,0.076432,61117.0,61116.0,0.9517812]
[1723323691249,0.076432,61117.0,61116.0,0.9527812]
[1723323692298,0.149032,61117.0,61116.0,0.8721812]
[1723323692499,0.15398436,61117.0,61116.0,0.9527812]
[1723323693240,0.15398436,61117.0,61116.0,0.9517812]
[1723323693444,0.15398436,61117.0,61116.0,0.8711812]
[1723323693623,0.15498436,61117.0,61116.0,0.8711812]
[1723323694120,0.15398436,61117.0,61116.0,0.8711812]
[1723323694322,0.15898436,61117.0,61116.0,0.8711812]
[1723323694661,0.15898436,61117.0,61116.0,0.8701812]
[1723323694863,0.15898436,61117.0,61116.0,0.86999574]
[1723323695123,0.16598436,61117.0,61116.0,0.86999574]
[1723323695320,0.15898436,61117.0,61116.0,0.86999574]
[1723323695703,0.16098436,61117.0,61116.0,0.86999574]
[1723323695911,0.16598436,61117.0,61116.0,0.86999574]
[1723323697109,0.17596132,61117.0,61116.0,0.54255782]
[1723323697315,0.18348129,61117.0,61116.0,0.54255782]
[1723323697863,0.17350433,61117.0,61116.0,0.54250389]
[1723323701509,0.18348129,61117.0,61116.0,0.54250389]
[1723323701846,0.17350433,61117.0,61116.0,0.54250389]
[1723323704943,0.17350433,61117.0,61116.0,0.54203116]
[1723323705314,0.17350433,61117.0,61116.0,0.409057]
[1723323705489,0.17350433,61117.0,61116.0,0.54215127]
[1723323706200,0.17350433,61117.0,61116.0,0.54209972]
[1723323708221,0.19191116,61117.0,61116.0,0.54209972]
[1723323708353,0.17350433,61117.0,61116.0,0.54209972]
[1723323711472,0.18348129,61117.0,61116.0,0.54209972]
[1723323713356,0.25531433,61117.0,61116.0,0.13304272]
[1723323713557,0.16922932,61111.0,61110.0,0.0009152]
[1723323713762,0.19589609,61111.0,61110.0,0.0009152]
[1723323713935,0.41863264,61111.0,61110.0,0.0009152]
[1723323714131,0.50045064,61111.0,61110.0,0.0009152]
[1723323714634,0.47587556,61111.0,61110.0,0.0009152]
[1723323714832,0.47587556,61111.0,61110.0,0.0019152]
[1723323715557,0.47587556,61111.0,61110.0,0.0029152]
[1723323716185,0.50037072,61111.0,61110.0,0.0029152]
[1723323716342,0.50037072,61111.0,61110.0,0.0019152]
[1723323716548,0.38263417,61111.0,61110.0,0.0019152]
[1723323717073,0.38263866,61111.0,61110.0,0.0019152]
[1723323717269,0.70991066,61111.0,61110.0,0.0009152]
[1723323717470,0.82267025,61111.0,61110.0,0.0009152]
[1723323717827,0.82967025,61111.0,61110.0,0.0009152]
[1723323718028,0.83964721,61111.0,61110.0,0.0009152]
[1723323718401,0.82967025,61111.0,61110.0,0.0009152]
[1723323718613,0.8049635,61111.0,61110.0,0.0009152]
[1723323718788,0.7069337,61111.0,61110.0,0.0009152]
[1723323718992,0.81494071,61111.0,61110.0,0.0009152]
[1723323719213,0.63295773,61111.0,61110.0,0.0009152]
[1723323719379,0.55331346,61111.0,61110.0,0.0009152]
[1723323720286,0.82497951,61111.0,61110.0,0.0009152]
[1723323720864,0.82495398,61111.0,61110.0,0.0009152]
[1723323721284,0.66131798,61111.0,61110.0,0.0009152]
[1723323721488,0.56331346,61111.0,61110.0,0.0009152]
[1723323722521,0.47314544,61111.0,61110.0,0.0009152]
[1723323723515,0.39967746,61111.0,61110.0,0.0009152]
[1723323725042,0.44864581,61111.0,61110.0,0.0009152]
[1723323725217,0.44862461,61111.0,61110.0,0.0009152]
[1723323725446,0.38965626,61111.0,61110.0,0.0009152]
[1723323725673,0.39965626,61111.0,61110.0,0.0009152]
[1723323726051,0.39964803,61111.0,61110.0,0.0009152]
[1723323726496,0.30783003,61111.0,61110.0,0.0009152]
[1723323726728,0.38964803,61111.0,61110.0,0.0009152]
[1723323726905,0.39048003,61111.0,61110.0,0.0009152]
[1723323727436,0.39049086,61111.0,61110.0,0.0009152]
[1723323727950,0.39048551,61111.0,61110.0,0.0009152]
[1723323728149,0.55412151,61111.0,61110.0,0.0009152]
[1723323728795,0.39048551,61111.0,61110.0,0.0009152]
[1723323729364,0.39048517,61111.0,61110.0,0.0009152]
[1723323730091,0.30866717,61111.0,61110.0,0.0009152]
[1723323732798,0.39048517,61111.0,61110.0,0.0009152]
[1723323732999,0.39050483,61111.0,61110.0,0.0009152]
[1723323736616,0.39049308,61111.0,61110.0,0.0009152]
[1723323736778,0.05437508,61111.0,61110.0,0.0827342]
[1723323736976,0.04600568,61111.0,61110.0,0.4916122]
[1723323737206,0.03776132,61111.0,61110.0,0.4916122]
[1723323737361,0.03776132,61111.0,61110.0,0.3279732]
[1723323737561,0.04596068,61111.0,61110.0,0.3279732]
[1723323739126,0.04596068,61111.0,61110.0,0.3881732]
[1723323739730,0.03776132,61111.0,61110.0,0.3881732]
[1723323739933,0.03776132,61111.0,61110.0,0.63258812]
[1723323740134,0.03776132,61111.0,61110.0,0.79622712]
[1723323740135,0.02280896,61111.0,61110.0,0.79622712]
[1723323740487,0.012832,61111.0,61110.0,1.0936925]
[1723323740695,0.02280896,61111.0,61110.0,1.0936925]
[1723323740826,0.01080896,61111.0,61110.0,1.0936925]
[1723323741259,0.01980896,61111.0,61110.0,1.0936925]
[1723323741464,0.01480896,61111.0,61110.0,1.0936925]
[1723323741667,0.01080896,61111.0,61110.0,1.0946925]
[1723323741865,0.000832,61111.0,61110.0,1.0946925]
[1723323742066,0.000832,61111.0,61110.0,1.0956925]
[1723323743490,0.01080896,61111.0,61110.0,0.96186612]
[1723323743652,0.000832,61111.0,61110.0,1.09575926]
[1723323743852,0.01080896,61111.0,61110.0,1.09575926]
[1723323746893,0.01080896,61111.0,61110.0,1.09559458]
[1723323747523,0.01080896,61111.0,61110.0,1.09559417]
[1723323750562,0.01080896,61111.0,61110.0,1.095376]
[1723323754037,0.01080896,61111.0,61110.0,0.96186612]
[1723323754241,0.01080896,61111.0,61110.0,1.09534855]
[1723323758268,0.01080896,61111.0,61110.0,1.09534787]
[1723323761345,0.01080896,61111.0,61110.0,1.09518634]
[1723323765022,0.01080896,61111.0,61110.0,1.09480108]
[1723323765804,0.000832,61111.0,61110.0,1.09480108]
[1723323766022,0.01080896,61111.0,61110.0,1.09480108]
[1723323766839,0.01080896,61111.0,61110.0,1.01320108]
[1723323768467,0.01080896,61111.0,61110.0,0.82006612]
[1723323768640,0.08740896,61111.0,61110.0,0.95282527]
[1723323769018,0.08740896,61111.0,61110.0,0.95284461]
[1723323769187,0.01080896,61111.0,61110.0,0.95284461]
[1723323769839,0.25050778,61111.0,61110.0,0.38115169]
[1723323770047,0.25050778,61111.0,61110.0,0.54479069]
[1723323770203,0.17765846,61111.0,61110.0,0.54479069]
[1723323770944,0.17765846,61111.0,61110.0,0.54379069]
[1723323771494,0.17765846,61111.0,61110.0,0.54279069]
[1723323771958,0.18165846,61111.0,61110.0,0.4100122]
[1723323772157,0.17765846,61111.0,61110.0,0.54268812]
[1723323772368,0.17865846,61111.0,61110.0,0.54268812]
[1723323772543,0.18165846,61111.0,61110.0,0.54268812]
[1723323773141,0.17865846,61111.0,61110.0,0.54268812]
[1723323775417,0.11235846,61111.0,61110.0,0.4100122]
[1723323775545,0.11235846,61111.0,61110.0,0.5426553]
[1723323775883,0.10336132,61111.0,61110.0,0.5426553]
[1723323779134,0.10336132,61111.0,61110.0,0.54268166]
[1723323780002,0.02676132,61111.0,61110.0,0.54268166]
[1723323781886,0.03575846,61111.0,61110.0,0.54268166]
[1723323786185,0.03575846,61111.0,61110.0,0.4100122]
[1723323787432,0.03575846,61111.0,61110.0,0.54283625]
[1723323787692,0.01180896,61111.0,61110.0,0.87029017]
[1723323787837,0.01180896,61111.0,61110.0,0.87846612]
[1723323788043,0.01180896,61111.0,61110.0,0.79816612]
[1723323788248,0.02676132,61111.0,61110.0,0.79816612]
[1723323788451,0.01180896,61111.0,61110.0,0.79816612]
[1723323788654,0.001832,61111.0,61110.0,0.79816612]
[1723323788853,0.01180896,61111.0,61110.0,0.87846612]
[1723323789132,0.01080896,61111.0,61110.0,0.87846612]
[1723323789536,0.01080896,61111.0,61110.0,1.01450429]
[1723323790083,0.01080896,61111.0,61110.0,1.01457614]
[1723323790285,0.01080896,61111.0,61110.0,1.01857614]
[1723323791222,0.01080896,61111.0,61110.0,1.01557614]
[1723323791441,0.01080896,61111.0,61110.0,1.01857614]
[1723323791727,0.01080896,61111.0,61110.0,1.01457614]
[1723323792018,0.01180896,61111.0,61110.0,1.01957614]
[1723323792231,0.01180896,61111.0,61110.0,1.01657614]
[1723323792677,0.01280896,61111.0,61110.0,1.02157614]
[1723323792822,0.01280896,61111.0,61110.0,1.02154896]
[1723323793617,0.002832,61111.0,61110.0,1.02154896]
[1723323793819,0.01280896,61111.0,61110.0,1.02155545]
[1723323794597,0.01280896,61111.0,61110.0,1.02153643]
[1723323796195,0.01280896,61111.0,61110.0,0.88053643]
[1723323798319,0.01180896,61111.0,61110.0,0.87553643]
[1723323798753,0.01180896,61111.0,61110.0,0.87853643]
[1723323798930,0.01080896,61111.0,61110.0,0.87353643]
[1723323799346,0.01080896,61111.0,61110.0,0.87753643]
[1723323799898,0.01080896,61111.0,61110.0,0.87353643]
[1723323800123,0.01080896,61111.0,61110.0,0.87753643]
[1723323803324,0.16646132,61111.0,61110.0,0.55018374]
[1723323803670,0.17373577,61111.0,61110.0,0.4170122]
[1723323803871,0.16646132,61111.0,61110.0,0.55018419]
[1723323804084,0.16375382,61111.0,61110.0,0.55018419]
[1723323804290,0.15648436,61111.0,61110.0,0.54718419]
[1723323804499,0.16646132,61111.0,61110.0,0.54318419]
[1723323804905,0.16646132,61111.0,61110.0,0.54718419]
[1723323804906,0.03303078,61111.0,61110.0,0.54718419]
[1723323805107,0.02576132,61111.0,61110.0,0.54718419]
[1723323805306,0.02576132,61111.0,61110.0,0.54318419]
[1723323805307,0.03303078,61111.0,61110.0,0.54318419]
[1723323805725,0.02676132,61111.0,61110.0,0.54318419]
[1723323805937,0.02876132,61111.0,61110.0,0.54318419]
[1723323806260,0.02576132,61111.0,61110.0,0.54318419]
[1723323806465,0.02676132,61111.0,61110.0,0.54318419]
[1723323806826,0.02676132,61111.0,61110.0,0.4100122]
[1723323807032,0.02676132,61111.0,61110.0,0.54315332]
[1723323807668,0.02876132,61111.0,61110.0,0.54315332]
[1723323807973,0.02676132,61111.0,61110.0,0.54315332]
[1723323808116,0.02876132,61111.0,61110.0,0.54315332]
[1723323808317,0.02776132,61111.0,61110.0,0.70679232]
[1723323808513,0.02876132,61111.0,61110.0,0.70679232]
[1723323808955,0.02676132,61111.0,61110.0,0.70679232]
[1723323809154,0.02776132,61111.0,61110.0,0.70679232]
[1723323809363,0.02776132,61111.0,61110.0,0.54315332]
[1723323809573,0.02876132,61111.0,61110.0,0.54315332]
[1723323810343,0.02876132,61111.0,61110.0,0.70679232]
[1723323810551,0.02876132,61111.0,61110.0,0.70680938]
[1723323810754,0.02876132,61111.0,61110.0,0.54317038]
[1723323812235,0.01778436,61111.0,61110.0,0.54317038]
[1723323812449,0.01778436,61111.0,61110.0,0.70680938]
[1723323812575,0.01678436,61111.0,61110.0,0.70680938]
[1723323812776,0.16856132,61111.0,61110.0,0.37953138]
[1723323813002,0.15758436,61111.0,61110.0,0.37953138]
[1723323813206,0.17484824,61111.0,61110.0,0.37953138]
[1723323813401,0.17484824,61111.0,61110.0,0.54517038]
[1723323814126,0.17484824,61111.0,61110.0,0.54317038]
[1723323814367,0.17484824,61111.0,61110.0,0.54517038]
[1723323814558,0.17484824,61111.0,61110.0,0.4120122]
[1723323814778,0.17484824,61111.0,61110.0,0.54504075]
[1723323814952,0.17484824,61111.0,61110.0,0.54304075]
[1723323815347,0.17484824,61111.0,61110.0,0.54404075]
[1723323816016,0.17484824,61111.0,61110.0,0.54398034]
[1723323817051,0.16487128,61111.0,61110.0,0.54398034]
[1723323817277,0.17484824,61111.0,61110.0,0.54398034]
[1723323817472,0.16487128,61111.0,61110.0,0.54398034]
[1723323817631,0.16487128,61111.0,61110.0,0.54405785]
[1723323818234,0.17484824,61111.0,61110.0,0.54405785]
[1723323819245,0.16487128,61111.0,61110.0,0.54305785]
[1723323820523,0.17484824,61111.0,61110.0,0.54305785]
[1723323820727,0.17584824,61111.0,61110.0,0.54305785]
[1723323821042,0.17584824,61111.0,61110.0,0.37993757]
[1723323821703,0.17584824,61111.0,61110.0,0.54357657]
[1723323823499,0.17584824,61111.0,61110.0,0.13447957]
[1723323823689,0.17584824,61111.0,61110.0,0.0009152]
[1723323823690,0.43964039,61111.0,61110.0,0.0009152]
[1723323823875,0.64424508,61111.0,61110.0,0.0009152]
[1723323824287,0.63695816,61111.0,61110.0,0.0009152]
[1723323824506,0.46225113,61111.0,61110.0,0.0009152]
[1723323824733,0.48053146,61111.0,61110.0,0.0009152]
[1723323825142,0.48053152,61111.0,61110.0,0.0009152]
[1723323825544,0.35777329,61111.0,61110.0,0.0009152]
[1723323825922,0.45594039,61111.0,61110.0,0.0009152]
[1723323826991,0.37409393,61111.0,61110.0,0.0009152]
[1723323827369,0.37407956,61111.0,61110.0,0.0009152]
[1723323827816,0.27592683,61111.0,61110.0,0.0009152]
[1723323828229,0.27588566,61111.0,61110.0,0.0009152]
[1723323828403,0.34947578,61111.0,61110.0,0.0009152]
[1723323829522,0.53014731,61111.0,61110.0,0.0009152]
[1723323829721,1.04245504,61111.0,61110.0,0.0009152]
[1723323829927,1.57078765,61111.0,61110.0,0.0009152]
[1723323830127,1.65901218,61111.0,61110.0,0.0009152]
[1723323830371,2.04802144,61111.0,61110.0,0.0009152]
[1723323830542,2.21939847,61111.0,61110.0,0.0009152]
[1723323830756,2.22639847,61111.0,61110.0,0.0009152]
[1723323830956,2.22175028,61111.0,61110.0,0.0009152]
[1723323831298,2.23575028,61111.0,61110.0,0.0009152]
[1723323831514,2.40105145,61111.0,61110.0,0.0009152]
[1723323831712,2.39911252,61111.0,61110.0,0.0009152]
[1723323831877,2.40588744,61111.0,61110.0,0.0009152]
[1723323832284,2.40088744,61111.0,61110.0,0.0009152]
[1723323832505,2.24959173,61111.0,61110.0,0.0009152]
[1723323833069,2.23559173,61111.0,61110.0,0.0009152]
[1723323833486,2.24959173,61111.0,61110.0,0.0009152]
[1723323834920,2.12491354,61111.0,61110.0,0.0009152]
[1723323835179,2.2490607,61111.0,61110.0,0.0009152]
[1723323835548,2.2309073,61111.0,61110.0,0.0009152]
[1723323835718,2.24904626,61111.0,61110.0,0.0009152]
[1723323836116,2.23504626,61111.0,61110.0,0.0009152]
[1723323836521,2.24904626,61111.0,61110.0,0.0009152]
[1723323836865,2.23510737,61111.0,61110.0,0.0009152]
[1723323837071,2.24910737,61111.0,61110.0,0.0009152]
[1723323839245,2.08495767,61111.0,61110.0,0.0009152]
[1723323839657,2.23165215,61111.0,61110.0,0.0009152]
[1723323840035,2.08491588,61111.0,61110.0,0.0009152]
[1723323840240,1.89946942,61111.0,61110.0,0.0009152]
[1723323840469,1.98006942,61111.0,61110.0,0.0009152]
[1723323841447,1.98011277,61111.0,61110.0,0.0009152]
[1723323841894,1.96611277,61111.0,61110.0,0.0009152]
[1723323842280,1.98011277,61111.0,61110.0,0.0009152]
[1723323842882,1.96611277,61111.0,61110.0,0.0009152]
[1723323843115,1.98011277,61111.0,61110.0,0.0009152]
[1723323845053,1.98007663,61111.0,61110.0,0.0009152]
[1723323845451,1.98006901,61111.0,61110.0,0.0009152]
[1723323845632,1.96606901,61111.0,61110.0,0.0009152]
[1723323846154,1.96606901,61111.0,61110.0,0.0019152]
[1723323846155,1.98006901,61111.0,61110.0,0.0019152]
[1723323846492,1.96606901,61111.0,61110.0,0.0019152]
[1723323846719,1.98006901,61111.0,61110.0,0.0019152]
[1723323847554,1.98004115,61111.0,61110.0,0.0019152]
[1723323848603,1.9800464,61111.0,61110.0,0.0019152]
[1723323848879,2.10223332,61111.0,61110.0,0.0019152]
[1723323849060,2.08823332,61111.0,61110.0,0.0009152]
[1723323849421,2.07423332,61111.0,61110.0,0.0009152]
[1723323849725,2.10223332,61111.0,61110.0,0.0019152]
[1723323849942,2.08823332,61111.0,61110.0,0.0019152]
[1723323850148,2.08826595,61111.0,61110.0,0.0019152]
[1723323850363,2.10226595,61111.0,61110.0,0.0019152]
[1723323851185,2.08826595,61111.0,61110.0,0.0009152]
[1723323851382,2.06828899,61111.0,61110.0,0.0009152]
[1723323851600,1.97410207,61111.0,61110.0,0.0019152]
[1723323852209,2.25064602,61111.0,61110.0,0.0019152]
[1723323852569,0.83096032,61100.0,61099.0,0.0009152]
[1723323852783,1.032325,61100.0,61099.0,0.0009152]
[1723323853094,1.112925,61100.0,61099.0,0.0009152]
[1723323854112,1.126925,61100.0,61099.0,0.0009152]
[1723323854313,1.656925,61100.0,61099.0,0.0009152]
[1723323854729,1.670925,61100.0,61099.0,0.0009152]
[1723323855788,1.67094199,61100.0,61099.0,0.0009152]
[1723323856147,1.85042333,61100.0,61099.0,0.0009152]
[1723323856850,1.76982333,61100.0,61099.0,0.0009152]
[1723323857000,1.77710253,61100.0,61099.0,0.0009152]
[1723323858328,1.78685744,61100.0,61099.0,0.0009152]
[1723323859268,1.83576424,61100.0,61099.0,0.0009152]
[1723323859470,1.78687612,61100.0,61099.0,0.0009152]
[1723323859761,1.83576424,61100.0,61099.0,0.0009152]
[1723323860945,1.82576424,61100.0,61099.0,0.0009152]
[1723323861147,1.83576424,61100.0,61099.0,0.0009152]
[1723323861359,1.78687612,61100.0,61099.0,0.0009152]
[1723323861559,1.83576424,61100.0,61099.0,0.0009152]
[1723323861917,1.82600933,61100.0,61099.0,0.0009152]
[1723323862565,1.77712121,61100.0,61099.0,0.0009152]
[1723323862774,1.65277524,61100.0,61099.0,0.0009152]
[1723323862966,1.77717563,61100.0,61099.0,0.0009152]
[1723323863143,1.82609415,61100.0,61099.0,0.0009152]
[1723323863345,1.77717563,61100.0,61099.0,0.0009152]
[1723323863570,1.85055341,61100.0,61099.0,0.0009152]
[1723323864139,1.77717563,61100.0,61099.0,0.0009152]
[1723323864524,1.86014445,61100.0,61099.0,0.0009152]
[1723323864838,1.78676667,61100.0,61099.0,0.0009152]
[1723323865283,1.86017763,61100.0,61099.0,0.0009152]
[1723323865486,1.88460371,61100.0,61099.0,0.0009152]
[1723323865863,1.88532784,61100.0,61099.0,0.0009152]
[1723323866267,1.88562113,61100.0,61099.0,0.0009152]
[1723323866479,1.78778409,61100.0,61099.0,0.0009152]
[1723323866641,1.73255838,61100.0,61099.0,0.0009152]
[1723323866841,1.91004008,61100.0,61099.0,0.0009152]
[1723323867124,1.78774377,61100.0,61099.0,0.0009152]
[1723323867316,1.91004008,61100.0,61099.0,0.0009152]
[1723323867523,1.78774377,61100.0,61099.0,0.0009152]
[1723323868168,1.91020053,61100.0,61099.0,0.0009152]
[1723323868567,1.78774377,61100.0,61099.0,0.0009152]
[1723323869193,1.70714377,61100.0,61099.0,0.0009152]
[1723323869398,1.78774377,61100.0,61099.0,0.0009152]
[1723323869815,1.78761658,61100.0,61099.0,0.0009152]
[1723323870822,1.93437215,61100.0,61099.0,0.0009152]
[1723323871025,1.78761658,61100.0,61099.0,0.0009152]
[1723323872072,1.72181658,61100.0,61099.0,0.0009152]
[1723323872255,1.72175779,61100.0,61099.0,0.0009152]
[1723323872461,1.86892512,61100.0,61099.0,0.0009152]
[1723323873463,1.86887226,61100.0,61099.0,0.0009152]
[1723323873663,1.72170493,61100.0,61099.0,0.0009152]
[1723323874946,1.72166705,61100.0,61099.0,0.0009152]
[1723323876608,1.64486705,61100.0,61099.0,0.0009152]
[1723323876958,1.5749225,61100.0,61099.0,0.0009152]
[1723323877169,1.64490715,61100.0,61099.0,0.0009152]
[1723323877370,0.26549096,61096.0,61095.0,0.0750152]
[1723323877577,0.581719,61096.0,61095.0,0.0750152]
[1723323877810,0.62350684,61096.0,61095.0,0.0750152]
[1723323878862,0.62350419,61096.0,61095.0,0.0750152]
[1723323879079,0.63550419,61096.0,61095.0,0.0750152]
[1723323879298,0.39752977,61096.0,61095.0,0.0750152]
[1723323879537,0.44129429,61096.0,61095.0,0.0750152]
[1723323879764,0.37469429,61096.0,61095.0,0.0750152]
[1723323879984,0.45529429,61096.0,61095.0,0.0750152]
[1723323880234,0.49212977,61096.0,61095.0,0.0750152]
[1723323880988,0.49142423,61096.0,61095.0,0.0750152]
[1723323881225,0.45470428,61096.0,61095.0,0.0750152]
[1723323881448,0.49142196,61096.0,61095.0,0.0750152]
[1723323882438,0.63879563,61096.0,61095.0,0.0750152]
[1723323884986,0.63877614,61096.0,61095.0,0.0750152]
[1723323885423,0.01492932,61091.0,61090.0,0.1397]
[1723323885648,0.15590249,61091.0,61090.0,0.1397]
[1723323886309,0.15590298,61091.0,61090.0,0.1397]
[1723323886554,0.03309026,61091.0,61090.0,0.1397]
[1723323887065,0.04109026,61091.0,61090.0,0.1397]
[1723323887282,0.04809026,61091.0,61090.0,0.1397]
[1723323887490,0.1709055,61091.0,61090.0,0.1397]
[1723323887699,0.17090551,61091.0,61090.0,0.1397]
[1723323887876,0.04809026,61091.0,61090.0,0.1397]
[1723323889323,0.04805785,61091.0,61090.0,0.1397]
[1723323890138,0.04805785,61091.0,61090.0,0.1406152]
[1723323891250,0.17088355,61091.0,61090.0,0.1406152]